[Event "Titled Tuesday Blitz January 03 Late 2023"]
[White "Lutz, Igor Oscar"]
[Black "ajedrez-facil"]
[WhiteFideId "2110806"]
[WhiteElo "1969"]
[BlackElo "2103"]
[Result "0-1"]
[Round "11"]
[TimeControl "180+2"]
[Date "2023.01.03"]
[WhiteClock "0:00:38"]
[BlackClock "0:01:53"]

1. d4 {[%clk 0:03:00]}  Nf6 {[%clk 0:02:59]} 2. c4 {[%clk 0:03:01]}  g6 {[%clk 0:03:00]} 3. Nc3 {[%clk 0:03:01]}  d5 {[%clk 0:03:00]} 4. cxd5 {[%clk 0:03:01]}  Nxd5 {[%clk 0:02:57]} 5. e4 {[%clk 0:03:02]}  Nxc3 {[%clk 0:02:57]} 6. bxc3 {[%clk 0:03:03]}  Bg7 {[%clk 0:02:58]} 7. Be3 {[%clk 0:03:04]}  c5 {[%clk 0:02:57]} 8. Bc4 {[%clk 0:03:02]}  O-O {[%clk 0:02:56]} 9. Ne2 {[%clk 0:03:02]}  Nc6 {[%clk 0:02:56]} 10. O-O {[%clk 0:02:58]}  cxd4 {[%clk 0:02:40]} 11. cxd4 {[%clk 0:02:56]}  a6 {[%clk 0:02:40]} 12. Rb1 {[%clk 0:02:52]}  b5 {[%clk 0:02:40]} 13. Bd5 {[%clk 0:02:47]}  Bb7 {[%clk 0:02:40]} 14. Rc1 {[%clk 0:02:38]}  Rc8 {[%clk 0:02:39]} 15. Qd2 {[%clk 0:02:23]}  e6 {[%clk 0:02:38]} 16. Bb3 {[%clk 0:02:19]}  Qa5 {[%clk 0:02:38]} 17. Rfd1 {[%clk 0:01:51]}  Qxd2 {[%clk 0:02:33]} 18. Rxd2 {[%clk 0:01:49]}  Na5 {[%clk 0:02:34]} 19. Rdc2 {[%clk 0:01:42]}  Nxb3 {[%clk 0:02:27]} 20. axb3 {[%clk 0:01:43]}  Rxc2 {[%clk 0:02:27]} 21. Rxc2 {[%clk 0:01:43]}  Bxe4 {[%clk 0:02:27]} 22. Rc7 {[%clk 0:01:40]}  Bd5 {[%clk 0:02:22]} 23. b4 {[%clk 0:01:32]}  Rd8 {[%clk 0:02:17]} 24. Nf4 {[%clk 0:01:15]}  Bc4 {[%clk 0:02:13]} 25. g3 {[%clk 0:00:55]}  Bxd4 {[%clk 0:02:05]} 26. Bxd4 {[%clk 0:00:45]}  Rxd4 {[%clk 0:02:05]} 27. Ra7 {[%clk 0:00:44]}  Bb3 {[%clk 0:01:56]} 28. Ra8+ {[%clk 0:00:37]}  Kg7 {[%clk 0:01:55]} 29. Ra7 {[%clk 0:00:37]}  Rxb4 {[%clk 0:01:53]} 30. Nxe6+ {[%clk 0:00:38]}  Bxe6 {[%clk 0:01:53]} 0-1


[Site "https://www.chess.com"]

[Event "Titled Tuesday Blitz January 03 Late 2023"]
[White "Kho, Darrell"]
[Black "Desideri, Ricardo Maruchi"]
[WhiteFideId "1019317"]
[BlackFideId "2110440"]
[WhiteElo "2075"]
[BlackElo "1959"]
[Result "1-0"]
[Round "11"]
[TimeControl "180+2"]
[Date "2023.01.03"]
[WhiteClock "0:00:06"]
[BlackClock "0:00:01"]

1. e4 {[%clk 0:03:00]}  c5 {[%clk 0:02:58]} 2. Nf3 {[%clk 0:03:01]}  d6 {[%clk 0:02:58]} 3. d4 {[%clk 0:03:01]}  cxd4 {[%clk 0:02:58]} 4. Qxd4 {[%clk 0:03:02]}  a6 {[%clk 0:02:55]} 5. Be2 {[%clk 0:03:00]}  Nc6 {[%clk 0:02:55]} 6. Qe3 {[%clk 0:03:00]}  Nf6 {[%clk 0:02:53]} 7. O-O {[%clk 0:02:57]}  e6 {[%clk 0:02:52]} 8. Rd1 {[%clk 0:02:52]}  Qc7 {[%clk 0:02:52]} 9. c4 {[%clk 0:02:46]}  b6 {[%clk 0:02:52]} 10. Nc3 {[%clk 0:02:42]}  Bb7 {[%clk 0:02:50]} 11. b3 {[%clk 0:02:36]}  Be7 {[%clk 0:02:49]} 12. Bb2 {[%clk 0:02:36]}  O-O {[%clk 0:02:49]} 13. Rac1 {[%clk 0:02:37]}  Nb8 {[%clk 0:02:48]} 14. h3 {[%clk 0:02:24]}  Nbd7 {[%clk 0:02:49]} 15. Ba3 {[%clk 0:02:11]}  Rac8 {[%clk 0:02:43]} 16. e5 {[%clk 0:01:56]}  Nxe5 {[%clk 0:02:04]} 17. Nxe5 {[%clk 0:01:53]}  dxe5 {[%clk 0:02:03]} 18. Bxe7 {[%clk 0:01:50]}  Qxe7 {[%clk 0:02:04]} 19. Qxb6 {[%clk 0:01:49]}  Rfd8 {[%clk 0:01:43]} 20. Rxd8+ {[%clk 0:01:24]}  Rxd8 {[%clk 0:01:42]} 21. c5 {[%clk 0:01:24]}  Rc8 {[%clk 0:01:22]} 22. Bxa6 {[%clk 0:00:49]}  Bxa6 {[%clk 0:01:08]} 23. Qxa6 {[%clk 0:00:50]}  Rxc5 {[%clk 0:01:03]} 24. b4 {[%clk 0:00:44]}  Rc7 {[%clk 0:00:56]} 25. b5 {[%clk 0:00:41]}  g6 {[%clk 0:00:53]} 26. b6 {[%clk 0:00:38]}  Rb7 {[%clk 0:00:49]} 27. a4 {[%clk 0:00:33]}  Qa3 {[%clk 0:00:42]} 28. Rd1 {[%clk 0:00:23]}  Rb8 {[%clk 0:00:33]} 29. Qa7 {[%clk 0:00:19]}  Qf8 {[%clk 0:00:22]} 30. a5 {[%clk 0:00:17]}  Ra8 {[%clk 0:00:17]} 31. Qc7 {[%clk 0:00:10]}  Rc8 {[%clk 0:00:16]} 32. Qxe5 {[%clk 0:00:08]}  Qe7 {[%clk 0:00:10]} 33. a6 {[%clk 0:00:07]}  Nd7 {[%clk 0:00:08]} 34. Qb5 {[%clk 0:00:06]}  Rxc3 {[%clk 0:00:06]} 35. b7 {[%clk 0:00:06]}  Nb8 {[%clk 0:00:05]} 36. a7 {[%clk 0:00:06]}  Qc7 {[%clk 0:00:02]} 37. axb8=Q+ {[%clk 0:00:06]}  Qxb8 {[%clk 0:00:01]} 38. Qb6 {[%clk 0:00:06]} 1-0


[Site "https://www.chess.com"]

[Event "Titled Tuesday Blitz January 03 Late 2023"]
[White "Romanchuk, Viktor"]
[Black "Dias, Joao Batista"]
[WhiteFideId "14109271"]
[BlackFideId "2108240"]
[WhiteElo "2266"]
[BlackElo "1796"]
[Result "1-0"]
[Round "11"]
[TimeControl "180+2"]
[Date "2023.01.03"]
[WhiteClock "0:00:19"]
[BlackClock "0:01:12"]

1. d4 {[%clk 0:03:00]}  d5 {[%clk 0:02:54]} 2. c4 {[%clk 0:03:00]}  c6 {[%clk 0:02:53]} 3. Nc3 {[%clk 0:02:59]}  Nf6 {[%clk 0:02:54]} 4. e3 {[%clk 0:03:00]}  g6 {[%clk 0:02:54]} 5. Nf3 {[%clk 0:03:00]}  Bg7 {[%clk 0:02:55]} 6. Be2 {[%clk 0:03:00]}  O-O {[%clk 0:02:56]} 7. O-O {[%clk 0:02:59]}  Re8 {[%clk 0:02:56]} 8. h3 {[%clk 0:02:54]}  Nbd7 {[%clk 0:02:57]} 9. cxd5 {[%clk 0:02:53]}  cxd5 {[%clk 0:02:56]} 10. Qb3 {[%clk 0:02:52]}  Nb6 {[%clk 0:02:55]} 11. a4 {[%clk 0:02:50]}  e6 {[%clk 0:02:54]} 12. a5 {[%clk 0:02:47]}  Nbd7 {[%clk 0:02:54]} 13. Bd2 {[%clk 0:02:46]}  b6 {[%clk 0:02:51]} 14. axb6 {[%clk 0:02:35]}  Qxb6 {[%clk 0:02:50]} 15. Qxb6 {[%clk 0:02:33]}  Nxb6 {[%clk 0:02:50]} 16. Nb5 {[%clk 0:02:34]}  Re7 {[%clk 0:02:46]} 17. Bb4 {[%clk 0:02:29]}  Rb7 {[%clk 0:02:45]} 18. Bc5 {[%clk 0:02:13]}  Bd7 {[%clk 0:02:44]} 19. Ne5 {[%clk 0:02:00]}  Bxb5 {[%clk 0:02:42]} 20. Bxb5 {[%clk 0:02:01]}  Rab8 {[%clk 0:02:13]} 21. Bc6 {[%clk 0:01:53]}  Rc7 {[%clk 0:02:11]} 22. Bd6 {[%clk 0:01:50]}  Rxc6 {[%clk 0:02:02]} 23. Nxc6 {[%clk 0:01:41]}  Rb7 {[%clk 0:02:01]} 24. Rxa7 {[%clk 0:01:39]}  Rxa7 {[%clk 0:02:00]} 25. Nxa7 {[%clk 0:01:39]}  Nc4 {[%clk 0:02:00]} 26. Ba3 {[%clk 0:01:38]}  Ne4 {[%clk 0:01:58]} 27. Nb5 {[%clk 0:01:28]}  Bf6 {[%clk 0:01:58]} 28. Rd1 {[%clk 0:01:21]}  Kg7 {[%clk 0:01:57]} 29. b3 {[%clk 0:01:16]}  Na5 {[%clk 0:01:53]} 30. Rd3 {[%clk 0:01:11]}  Bh4 {[%clk 0:01:49]} 31. g3 {[%clk 0:01:07]}  Bd8 {[%clk 0:01:48]} 32. Bb4 {[%clk 0:01:01]}  Nc6 {[%clk 0:01:43]} 33. Be1 {[%clk 0:01:00]}  f5 {[%clk 0:01:33]} 34. Nc3 {[%clk 0:00:27]}  Nb4 {[%clk 0:01:29]} 35. Rd1 {[%clk 0:00:26]}  Kf6 {[%clk 0:01:22]} 36. Nxe4+ {[%clk 0:00:26]}  fxe4 {[%clk 0:01:20]} 37. Bxb4 {[%clk 0:00:26]}  g5 {[%clk 0:01:14]} 38. Bd6 {[%clk 0:00:19]}  Kf7 {[%clk 0:01:12]} 39. g4 {[%clk 0:00:19]}  Ke8 {[%clk 0:01:12]} 40. b4 {[%clk 0:00:18]}  Kd7 {[%clk 0:01:13]} 41. Bc5 {[%clk 0:00:18]}  Kc6 {[%clk 0:01:13]} 42. Kg2 {[%clk 0:00:19]}  Kb5 {[%clk 0:01:14]} 43. Ra1 {[%clk 0:00:19]}  h6 {[%clk 0:01:12]} 44. Ra8 {[%clk 0:00:19]}  Kc4 {[%clk 0:01:12]} 45. Rxd8 {[%clk 0:00:19]}  Kd3 {[%clk 0:01:12]} 46. Re8 {[%clk 0:00:19]} 1-0